bitfinex/quotes_SOLUSD_20241028
["timestamp","ask_amount","ask_price","bid_price","bid_amount"]
[1730087025357,8.93871791,176.0,175.96,32.96658191]
[1730087025556,8.93871791,176.0,175.96,24.027864]
[1730087025754,8.93871791,176.0,175.96,32.96658191]
[1730087025946,8.93871791,176.01,175.96,32.96658191]
[1730087026154,8.93871791,176.0,175.96,24.027864]
[1730087026661,8.93871791,175.99,175.96,24.027864]
[1730087027050,8.93871791,176.0,175.96,24.027864]
[1730087029439,8.93871791,176.01,175.96,32.96658191]
[1730087029737,8.93871791,176.0,175.96,24.027864]
[1730087030143,8.93871791,176.01,175.97,8.93871791]
[1730087030760,8.93871791,176.01,175.96,32.96658191]
[1730087031935,8.93871791,176.0,175.96,24.027864]
[1730087032136,8.93871791,175.99,175.95,5.86443987]
[1730087032438,8.93871791,175.97,175.92,8.93871791]
[1730087032642,8.93871791,175.97,175.91,24.31801791]
[1730087032959,8.93871791,175.97,175.93,5.92267715]
[1730087033257,8.93871791,175.98,175.93,14.86139506]
[1730087033443,8.93871791,175.99,175.94,8.93871791]
[1730087033655,8.93871791,176.05,175.99,24.027864]
[1730087033843,8.93871791,176.05,176.01,23.776884]
[1730087034037,8.93871791,176.04,176.01,23.776884]
[1730087034942,8.93871791,176.03,176.01,23.776884]
[1730087036442,8.93871791,176.04,176.01,23.776884]
[1730087038243,8.93871791,176.04,176.0,23.776884]
[1730087038738,14.61891791,176.05,176.0,23.776884]
[1730087040358,14.61891791,176.05,176.0,32.71560191]
[1730087040761,8.93871791,176.05,176.0,23.776884]
[1730087041074,8.93871791,176.05,176.0,32.71560191]
[1730087041965,8.93871791,176.04,175.95,20.0]
[1730087042170,8.93871791,176.04,175.99,8.93871791]
[1730087042881,8.93871791,176.05,176.0,8.93871791]
[1730087043346,5.6805,176.04,176.0,8.93871791]
[1730087046470,5.6805,176.04,175.99,8.93871791]
[1730087046676,8.93871791,176.02,175.96,24.027864]
[1730087046846,8.93871791,176.02,175.98,23.776884]
[1730087047052,14.62001791,176.02,175.97,8.93871791]
[1730087049567,5.6813,176.02,175.97,8.93871791]
[1730087049773,8.93871791,176.02,175.97,8.93871791]
[1730087050482,8.93871791,176.01,175.96,32.71560191]
[1730087050687,8.93871791,176.0,175.96,23.776884]
[1730087050979,8.93871791,176.0,175.94,8.93871791]
[1730087051188,8.93871791,175.99,175.95,23.776884]
[1730087053273,8.93871791,175.99,175.94,23.776884]
[1730087054583,8.93871791,175.99,175.94,8.93871791]
[1730087054761,8.93871791,175.99,175.95,23.776884]
[1730087055879,14.2001,176.06,175.95,32.71560191]
[1730087056077,5.6802,176.05,175.97,8.93871791]
[1730087056278,8.93871791,176.03,175.98,32.71560191]
[1730087056477,5.6802,176.05,175.95,23.776884]
[1730087056478,8.93871791,176.04,175.99,8.93871791]
[1730087056669,8.93871791,176.03,175.99,23.776884]
[1730087056869,5.6802,176.05,175.99,32.71560191]
[1730087057172,8.93871791,176.05,176.0,8.93871791]
[1730087057485,8.93871791,176.05,176.01,23.776884]
[1730087059406,26.8868,176.08,176.01,23.776884]
[1730087059694,8.93871791,176.03,176.0,23.776884]
[1730087059862,8.93871791,176.03,175.99,23.776884]
[1730087060066,8.93871791,176.04,175.99,32.71560191]
[1730087060269,8.93871791,176.05,175.99,32.71560191]
[1730087060793,8.93871791,176.04,175.99,32.71560191]
[1730087061172,8.93871791,176.02,175.98,23.776884]
[1730087061676,8.93871791,176.03,175.98,23.776884]
[1730087061884,8.93871791,176.03,175.98,32.71560191]
[1730087062198,8.93871791,176.04,175.99,8.93871791]
[1730087062367,8.93871791,176.03,175.98,32.71560191]
[1730087063188,8.93871791,176.04,176.0,23.776884]
[1730087063372,8.93871791,176.05,176.0,8.93871791]
[1730087064488,8.93871791,176.05,176.01,23.776884]
[1730087065177,14.61871791,176.06,176.01,32.71560191]
[1730087067372,8.93871791,176.05,176.01,23.776884]
[1730087068202,5.6795,176.07,176.01,32.71560191]
[1730087068504,14.61871791,176.06,176.01,32.71560191]
[1730087068791,8.93871791,176.05,176.01,23.776884]
[1730087070685,5.6795,176.07,176.01,23.776884]
[1730087070895,8.93871791,176.06,176.01,32.71560191]
[1730087071093,14.61821791,176.07,176.01,32.71560191]
[1730087071477,8.93871791,176.06,176.01,32.71560191]
[1730087071875,8.93871791,176.02,175.97,20.25098]
[1730087072076,8.93871791,176.02,175.97,52.96658191]
[1730087072298,8.93871791,176.02,175.97,32.96658191]
[1730087072873,8.93871791,176.01,175.96,5.92790294]
[1730087073076,5.6813,176.02,175.96,5.92790294]
[1730087073299,8.93871791,176.02,175.97,8.93871791]
[1730087073481,8.93871791,176.01,175.96,14.86662085]
[1730087074298,8.93871791,176.01,175.97,23.776884]
[1730087074993,8.93871791,176.03,175.97,32.71560191]
[1730087075181,8.93871791,176.03,175.99,23.776884]
[1730087079296,8.93871791,176.02,175.98,23.776884]
[1730087081080,14.62001791,176.02,175.98,23.776884]
[1730087081314,8.93871791,176.01,175.97,23.776884]
[1730087081683,8.93871791,176.01,175.96,5.92963412]
[1730087082689,8.93871791,176.01,175.96,14.86835203]
[1730087082995,8.93871791,176.04,176.0,23.776884]
[1730087083306,8.93871791,176.04,175.99,23.776884]
[1730087083506,8.93871791,176.04,176.0,23.776884]
[1730087083805,8.93871791,176.05,176.0,32.71560191]
[1730087084496,14.61891791,176.05,176.0,32.71560191]
[1730087087617,8.93871791,176.03,175.99,23.776884]
[1730087090220,8.93871791,176.04,175.99,23.776884]
[1730087092212,8.93871791,176.03,175.98,5.92644933]
[1730087094092,14.61921791,176.04,175.98,5.92644933]
[1730087095819,5.6795,176.07,175.99,23.776884]
[1730087096115,8.93871791,176.06,176.0,8.93871791]
[1730087096321,8.93871791,176.05,175.99,32.71560191]
[1730087097013,5.6796,176.07,175.99,32.71560191]
[1730087097213,8.93871791,176.06,176.01,23.776884]
[1730087100217,8.93871791,176.05,176.01,23.776884]
[1730087101523,8.93871791,176.04,175.99,5.92721243]
[1730087101819,8.93871791,176.04,176.0,23.776884]
[1730087103711,8.93871791,176.02,175.99,5.92721243]
[1730087104498,8.93871791,176.03,175.99,5.92721243]
[1730087104810,14.61951791,176.03,175.99,5.92721243]
[1730087106922,8.93871791,176.02,175.99,5.92721243]
[1730087107218,14.61951791,176.03,175.99,5.92721243]
[1730087108214,21.2074,176.08,176.01,8.93871791]
[1730087108428,8.93871791,176.07,176.01,8.93871791]
[1730087108629,8.93871791,176.06,176.0,32.71560191]
[1730087108828,8.93871791,176.06,176.0,38.64000651]
[1730087109031,8.93871791,176.05,176.0,29.7012886]
[1730087113230,8.93871791,176.05,176.0,38.64000651]
[1730087113525,8.93871791,176.05,176.0,29.7012886]
[1730087113730,8.93871791,176.03,176.0,5.9244046]
[1730087114238,8.93871791,176.02,176.0,5.9244046]
[1730087114534,8.93871791,176.01,176.0,5.9244046]
[1730087115717,8.93871791,176.04,176.0,5.9244046]
[1730087117229,8.93871791,176.03,176.0,5.9244046]
[1730087117840,8.93871791,176.04,176.0,5.9244046]
[1730087118138,8.93871791,176.03,176.0,5.9244046]
[1730087120936,21.2074,176.08,176.0,5.9244046]
[1730087120937,8.93871791,176.02,176.0,5.9244046]
[1730087121239,8.93871791,176.01,176.0,5.9244046]
[1730087121941,30.33431791,176.01,176.0,5.9244046]
[1730087125758,0.25098,176.0,175.88,15.0496]
[1730087126054,8.93871791,175.93,175.87,8.93871791]
[1730087126235,8.93871791,175.93,175.89,5.91383861]
[1730087127753,8.93871791,175.92,175.89,5.91383861]
[1730087130938,8.93871791,175.91,175.89,5.91383861]
[1730087131351,8.93871791,175.9,175.89,5.91383861]
[1730087131658,8.93871791,175.9,175.83,20.0]
[1730087131853,8.93871791,175.88,175.87,5.91173122]
[1730087132161,8.93871791,175.88,175.83,20.0]
[1730087132337,8.93871791,175.88,175.87,5.91119958]
[1730087132533,8.93871791,175.88,175.83,20.0]
[1730087132745,8.93871791,175.88,175.87,5.90276955]
[1730087133152,8.93871791,175.88,175.83,20.0]
[1730087133334,8.93871791,175.86,175.81,8.93871791]
[1730087133544,5.6845,175.92,175.82,5.89992343]
[1730087133545,8.93871791,175.85,175.82,5.89992343]
[1730087134230,8.93871791,175.86,175.82,5.89992343]
[1730087135052,8.93871791,175.84,175.82,5.89992343]
[1730087135451,8.93871791,175.84,175.79,20.0]
[1730087135666,8.93871791,175.83,175.8,5.90573601]
[1730087136037,8.93871791,175.82,175.8,5.90573601]
[1730087137059,8.93871791,175.81,175.8,5.90573601]
[1730087137640,8.93871791,175.81,175.75,24.99891791]
[1730087137852,8.93871791,175.8,175.75,16.0602]
[1730087138039,8.93871791,175.8,175.78,5.90557123]
[1730087138236,8.93871791,175.79,175.75,16.0602]
[1730087138456,8.93871791,175.79,175.78,5.90549942]
[1730087138867,8.93871791,175.79,175.71,6.4394]
[1730087138868,8.93871791,175.79,175.72,20.0]
[1730087139040,6.3548,175.84,175.77,5.90941836]
[1730087139354,6.3548,175.84,175.71,22.6942]
[1730087139355,8.93871791,175.78,175.71,31.63291791]
[1730087139560,8.93871791,175.78,175.75,5.90339556]
[1730087139764,8.93871791,175.78,175.73,8.93871791]
[1730087140258,8.93871791,175.78,175.75,5.90478402]
[1730087140689,6.3548,175.84,175.76,32.71560191]
[1730087140849,8.93871791,175.81,175.76,32.71560191]
[1730087141275,8.93871791,175.81,175.76,23.776884]
[1730087141472,8.93871791,175.81,175.76,32.71560191]
[1730087142565,8.93871791,175.82,175.78,23.776884]
[1730087143652,6.1767,175.88,175.79,28.93871791]
[1730087143859,8.93871791,175.86,175.8,32.71560191]
[1730087144467,8.93871791,175.85,175.8,32.71560191]
[1730087146567,8.93871791,175.86,175.81,8.93871791]
[1730087147279,8.93871791,175.86,175.82,23.776884]
[1730087147467,6.1767,175.88,175.82,32.71560191]
[1730087147669,8.93871791,175.89,175.83,8.93871791]
[1730087148258,8.93871791,175.89,175.84,8.93871791]
[1730087149067,8.93871791,175.9,175.84,8.93871791]
[1730087149485,8.93871791,175.9,175.85,8.93871791]
[1730087149676,6.2045,175.92,175.86,32.71560191]
[1730087149677,8.93871791,175.91,175.86,32.71560191]
[1730087150483,8.93871791,175.91,175.86,23.776884]
[1730087150679,8.93871791,175.9,175.86,23.776884]
[1730087150980,8.93871791,175.9,175.85,23.776884]
[1730087152069,8.93871791,175.88,175.85,20.0]
[1730087152464,8.93871791,175.88,175.79,11.58409336]
[1730087152465,8.93871791,175.86,175.82,20.0]
[1730087152867,8.93871791,175.85,175.79,5.90927634]
[1730087153066,8.93871791,175.84,175.8,20.0]
[1730087153597,8.93871791,175.84,175.79,14.84799425]
[1730087153886,8.93871791,175.85,175.79,14.84799425]
[1730087154384,8.93871791,175.85,175.8,23.776884]
[1730087154587,13.99187022,175.85,175.8,23.776884]
[1730087154792,13.99187022,175.85,175.81,20.0]
[1730087157975,13.99187022,175.84,175.81,20.0]
[1730087158173,13.99187022,175.83,175.8,23.776884]
[1730087158392,13.99187022,175.82,175.79,5.90927634]
[1730087158991,13.99187022,175.82,175.77,49.93570643]
[1730087159206,13.99187022,175.81,175.77,49.93570643]
[1730087159495,13.99187022,175.78,175.77,5.90784243]
[1730087159666,13.99187022,175.78,175.69,0.1]
[1730087159865,13.99187022,175.77,175.72,13.99187022]
[1730087160063,13.99187022,175.77,175.74,5.901214]
[1730087160582,13.99187022,175.78,175.74,5.901214]
[1730087160892,13.99187022,175.79,175.73,39.89695923]
[1730087161067,13.99187022,175.78,175.74,23.776884]
[1730087163172,13.99187022,175.75,175.73,5.90508901]
[1730087163371,13.99187022,175.74,175.69,13.99187022]
[1730087163571,13.99187022,175.74,175.7,5.90349863]
[1730087164171,11.8713,175.8,175.7,5.90349863]
[1730087164172,13.99187022,175.73,175.7,5.90349863]
[1730087164374,13.99187022,175.73,175.68,30.03567022]
[1730087164603,13.99187022,175.73,175.69,5.90468926]
[1730087165287,13.99187022,175.73,175.7,20.0]
[1730087166175,13.99187022,175.74,175.7,20.0]
[1730087166711,13.99187022,175.77,175.72,13.99187022]
[1730087166897,13.99187022,175.78,175.73,13.99187022]
[1730087167100,13.99187022,175.78,175.71,23.776884]
[1730087167101,13.99187022,175.77,175.72,13.99187022]
[1730087168379,13.99187022,175.79,175.73,37.76875422]
[1730087168580,13.99187022,175.79,175.74,13.99187022]
[1730087169604,6.4565,175.84,175.76,13.99187022]
[1730087169898,13.99187022,175.82,175.76,13.99187022]
[1730087170101,13.99187022,175.83,175.77,13.99187022]
[1730087170292,13.99187022,175.82,175.77,13.99187022]
[1730087170682,13.99187022,175.81,175.77,23.776884]
[1730087172304,13.99187022,175.81,175.76,20.0]
[1730087172474,13.99187022,175.8,175.76,20.0]
[1730087174188,13.99187022,175.82,175.76,13.99187022]
[1730087176202,13.99187022,175.82,175.77,13.99187022]
[1730087178399,13.99187022,175.81,175.76,13.99187022]
[1730087178701,13.99187022,175.81,175.77,23.776884]
[1730087179082,13.99187022,175.82,175.77,23.776884]
[1730087180303,13.99187022,175.82,175.77,37.76875422]
[1730087180499,8.95765934,175.82,175.77,32.73454334]
[1730087181781,8.95765934,175.84,175.79,8.95765934]
[1730087182089,25.19085934,175.85,175.79,8.95765934]
[1730087182684,16.2332,175.85,175.8,8.95765934]
[1730087183004,8.95765934,175.86,175.8,8.95765934]
[1730087183586,6.1726,175.88,175.81,44.027864]
[1730087183795,24.89655934,175.89,175.83,8.95765934]
[1730087184003,24.89655934,175.89,175.84,23.776884]
[1730087185404,8.95765934,175.88,175.83,23.776884]
[1730087185602,8.95765934,175.86,175.8,8.95765934]
[1730087185788,8.95765934,175.84,175.8,20.0]
[1730087185995,8.95765934,175.84,175.81,23.776884]
[1730087186485,13.99473203,175.83,175.81,23.776884]
[1730087186982,13.99473203,175.83,175.77,13.99473203]
[1730087187188,13.99473203,175.82,175.77,23.776884]
[1730087187590,13.99473203,175.82,175.78,20.0]
[1730087187791,13.99473203,175.82,175.77,20.0]
[1730087188410,13.99473203,175.83,175.78,20.0]
[1730087188612,13.99473203,175.83,175.78,13.99473203]
[1730087189108,13.99473203,175.84,175.79,23.776884]
[1730087190022,13.99473203,175.84,175.79,22.776884]
[1730087190315,13.99473203,175.84,175.78,13.99473203]
[1730087192211,13.99473203,175.83,175.78,43.776884]
[1730087193407,13.99473203,175.82,175.78,20.0]
[1730087193802,13.99473203,175.82,175.78,19.5]
[1730087194729,13.99473203,175.83,175.78,19.5]
[1730087195718,13.99473203,175.8,175.75,13.99473203]
[1730087195920,13.99473203,175.79,175.73,19.90842074]
[1730087196225,13.99473203,175.77,175.73,5.90770047]
[1730087196400,13.99473203,175.76,175.73,5.90770047]
[1730087197012,13.99473203,175.76,175.7,30.15693203]
[1730087197213,13.99473203,175.76,175.71,5.91084748]
[1730087197423,13.99473203,175.74,175.71,5.91084748]
[1730087197715,13.99473203,175.74,175.69,13.99473203]
[1730087197915,13.99473203,175.74,175.7,5.90736985]
[1730087198615,13.99473203,175.75,175.71,20.0]
[1730087199009,13.99473203,175.76,175.71,20.0]
[1730087199204,13.99473203,175.76,175.71,33.99473203]
[1730087199708,6.1956,175.8,175.75,13.99473203]
[1730087200009,22.2653,175.83,175.76,13.99473203]
[1730087200209,13.99473203,175.81,175.76,13.99473203]
[1730087202010,13.99473203,175.81,175.75,13.99473203]
[1730087202628,13.99473203,175.8,175.75,13.99473203]
[1730087208126,13.99473203,175.81,175.76,13.99473203]
[1730087208631,8.95885949,175.81,175.76,8.95885949]
[1730087209814,8.95885949,175.8,175.75,8.95885949]
[1730087210031,8.95885949,175.78,175.73,20.0]
[1730087210413,8.95885949,175.77,175.73,20.0]
[1730087210745,8.95885949,175.74,175.72,5.90689996]
[1730087210913,8.95885949,175.73,175.67,0.0797368]
[1730087211119,8.95885949,175.72,175.69,5.90401233]
[1730087211839,8.95885949,175.73,175.69,5.90401233]
[1730087212435,14.01133765,175.73,175.69,5.90401233]
[1730087212940,14.01133765,175.74,175.7,23.776884]
[1730087215318,14.01133765,175.73,175.69,5.90401233]
[1730087219724,14.01133765,175.74,175.68,14.01133765]
[1730087220240,14.01133765,175.75,175.7,14.01133765]
[1730087220442,20.54763765,175.77,175.71,14.01133765]
[1730087220644,16.4882,175.8,175.75,14.01133765]
[1730087220844,20.26523765,175.81,175.76,14.01133765]
[1730087221829,20.26523765,175.81,175.75,14.01133765]
[1730087223520,14.01133765,175.8,175.75,14.01133765]
[1730087225233,14.01133765,175.79,175.73,14.01133765]
[1730087226642,14.01133765,175.78,175.73,14.01133765]
[1730087226848,5.6886,175.79,175.69,20.0]
[1730087226849,14.01133765,175.74,175.69,20.0]
[1730087227040,14.01133765,175.74,175.68,14.01133765]
[1730087227850,14.01133765,175.75,175.69,14.01133765]
[1730087228151,14.01133765,175.74,175.69,14.01133765]
[1730087228646,19.70123765,175.75,175.69,14.01133765]
[1730087228940,14.01133765,175.74,175.68,57.91371165]
[1730087229122,14.01133765,175.73,175.68,43.776884]
[1730087229727,14.01133765,175.71,175.67,20.0797368]
[1730087231551,19.70223765,175.72,175.67,20.0797368]
[1730087232455,14.01133765,175.71,175.67,20.0797368]
[1730087233541,19.70223765,175.72,175.67,20.0797368]
[1730087235529,14.01133765,175.75,175.69,14.01133765]
[1730087237451,14.01133765,175.78,175.72,14.01133765]
[1730087237958,14.01133765,175.77,175.71,14.01133765]
[1730087238547,19.70053765,175.77,175.71,14.01133765]
[1730087238755,14.01133765,175.77,175.71,14.01133765]
[1730087239761,19.70023765,175.78,175.72,14.01133765]
[1730087242261,14.01133765,175.73,175.69,20.0]
[1730087242444,14.01133765,175.73,175.68,19.9206352]
[1730087244063,14.01133765,175.73,175.68,14.01133765]
[1730087244855,14.01133765,175.73,175.67,57.86795845]
[1730087246458,14.01133765,175.72,175.67,57.86795845]
[1730087246844,14.01133765,175.73,175.67,57.86795845]
[1730087248664,8.96728208,175.73,175.68,8.96728208]
[1730087250467,8.96728208,175.74,175.68,8.96728208]
[1730087250667,8.96728208,175.73,175.68,8.96728208]
[1730087251042,8.96728208,175.73,175.67,52.82390288]
[1730087251767,8.96728208,175.72,175.67,43.8566208]
[1730087252145,8.96728208,175.71,175.67,20.0797368]
[1730087252364,8.96728208,175.69,175.67,0.0797368]
[1730087252647,8.96728208,175.68,175.67,0.0797368]
[1730087253558,14.65938208,175.68,175.67,0.0797368]
[1730087254062,31.02558208,175.68,175.67,0.0797368]
[1730087254263,66.8947104,175.68,175.67,0.0797368]
[1730087254468,50.1159024,175.68,175.67,0.0797368]
[1730087256361,50.3668824,175.68,175.55,14.0288012]
[1730087256664,14.0288012,175.6,175.54,19.92794758]
[1730087256977,14.0288012,175.6,175.54,14.0288012]
[1730087257141,14.0288012,175.61,175.55,14.0288012]
[1730087257659,14.0288012,175.6,175.55,14.0288012]
[1730087258569,19.9236,175.67,175.55,20.0]
[1730087258570,14.0288012,175.59,175.55,20.0]
[1730087259263,14.0288012,175.56,175.53,5.89934105]
[1730087259484,14.0288012,175.54,175.53,5.89934105]
[1730087259766,14.0288012,175.54,175.49,0.5966361]
[1730087259987,0.25098,175.6,175.49,0.5966361]
[1730087260144,14.0288012,175.54,175.49,0.5966361]
[1730087260459,14.0288012,175.53,175.49,0.5966361]
[1730087260666,14.0288012,175.54,175.49,0.5966361]
[1730087260858,24.027864,175.6,175.49,0.5966361]
[1730087261059,14.0288012,175.53,175.49,0.5966361]
[1730087261458,14.0288012,175.55,175.49,14.6254373]
[1730087261765,14.0288012,175.53,175.49,0.5966361]
[1730087261973,14.0288012,175.52,175.49,0.5966361]
[1730087262171,14.0288012,175.53,175.49,0.5966361]
[1730087262369,5.6961,175.56,175.49,0.5966361]
[1730087262566,14.0288012,175.53,175.49,0.5966361]
[1730087263081,14.0288012,175.52,175.49,0.5966361]
[1730087263564,14.0288012,175.53,175.49,0.5966361]
[1730087263764,5.6967,175.54,175.49,0.5966361]
[1730087263765,14.0288012,175.52,175.49,0.5966361]
[1730087264675,5.6967,175.54,175.49,0.5966361]
[1730087264676,14.0288012,175.54,175.49,14.6254373]
[1730087264879,14.0288012,175.55,175.49,14.6254373]
[1730087265561,14.0288012,175.57,175.51,14.0288012]
[1730087265974,14.0288012,175.55,175.5,37.8056852]
[1730087266373,14.0288012,175.54,175.49,14.6254373]
[1730087266570,14.0288012,175.53,175.49,0.5966361]
[1730087268262,14.0288012,175.54,175.49,0.5966361]
[1730087268463,14.0288012,175.56,175.5,14.0288012]
[1730087268764,14.0288012,175.58,175.52,14.0288012]
[1730087269165,14.0288012,175.59,175.53,14.0288012]
[1730087269360,14.0288012,175.59,175.54,14.0288012]
[1730087269571,14.0288012,175.6,175.55,14.0288012]
[1730087269869,15.8293,175.61,175.57,14.0288012]
[1730087270172,29.8581012,175.61,175.56,14.0288012]
[1730087270684,14.0288012,175.6,175.55,14.0288012]
[1730087270865,14.0288012,175.58,175.53,14.0288012]
[1730087271067,14.0288012,175.56,175.51,14.0288012]
[1730087271282,14.0288012,175.56,175.5,37.8056852]
[1730087271460,14.0288012,175.56,175.5,14.0288012]
[1730087271663,14.0288012,175.55,175.5,14.0288012]
[1730087271876,15.9293,175.61,175.49,0.5966361]
[1730087271877,14.0288012,175.54,175.49,0.5966361]
[1730087272272,14.0288012,175.53,175.49,0.5966361]
[1730087272985,5.6954,175.58,175.49,0.5966361]
[1730087272986,14.0288012,175.5,175.49,0.5966361]
[1730087273593,14.0288012,175.51,175.49,0.5966361]
[1730087273969,14.0288012,175.5,175.49,0.5966361]
[1730087274294,14.0288012,175.51,175.49,0.5966361]
[1730087274463,14.0288012,175.52,175.49,0.5966361]
[1730087274669,19.7258012,175.53,175.49,0.5966361]
[1730087274863,5.697,175.53,175.49,0.5966361]
[1730087275593,19.7258012,175.53,175.49,0.5966361]
[1730087276179,14.0288012,175.56,175.5,14.0288012]
[1730087276384,19.7249012,175.56,175.5,14.0288012]
[1730087277181,19.7249012,175.56,175.43,5.89703007]
[1730087277182,22.94808,175.5,175.43,5.89703007]
[1730087277381,14.0288012,175.45,175.39,14.0288012]
[1730087277881,14.0288012,175.46,175.4,14.0288012]
[1730087278482,19.7282012,175.46,175.4,14.0288012]
[1730087279492,19.7282012,175.46,175.39,14.0288012]
[1730087279885,19.7282012,175.46,175.4,14.0288012]
[1730087280803,14.0288012,175.47,175.42,14.0288012]
[1730087281101,14.0288012,175.48,175.43,14.0288012]
[1730087281511,14.0288012,175.49,175.43,14.0288012]
[1730087281888,19.7271012,175.49,175.43,14.0288012]
[1730087282090,14.0288012,175.48,175.42,14.0288012]
[1730087282608,14.0288012,175.46,175.4,14.0288012]
[1730087283176,19.7281012,175.46,175.4,14.0288012]
[1730087283395,14.0288012,175.45,175.4,14.0288012]
[1730087283593,14.0288012,175.45,175.39,14.0288012]
[1730087285710,14.0288012,175.47,175.42,23.902374]
[1730087286309,14.0288012,175.47,175.41,14.0288012]
[1730087286504,14.0288012,175.46,175.41,14.0288012]
[1730087287414,14.0288012,175.45,175.4,14.0288012]
[1730087287709,14.0288012,175.43,175.38,14.0288012]
[1730087287887,14.0288012,175.42,175.37,14.0288012]
[1730087288283,14.0288012,175.43,175.37,14.0288012]
[1730087289194,14.0288012,175.43,175.38,23.776884]
[1730087289398,14.0288012,175.41,175.35,36.07895973]
[1730087289796,14.0288012,175.38,175.35,5.90015853]
[1730087290114,14.0288012,175.38,175.33,14.0288012]
[1730087290312,14.0288012,175.36,175.33,5.88960708]
[1730087290716,14.0288012,175.36,175.31,0.5966361]
[1730087291024,14.0288012,175.38,175.32,14.0288012]
[1730087291207,14.0288012,175.4,175.34,14.0288012]
[1730087291718,14.0288012,175.39,175.33,14.0288012]
[1730087292313,14.0288012,175.42,175.36,14.0288012]
[1730087292488,14.0288012,175.42,175.37,14.0288012]
[1730087293118,14.0288012,175.42,175.36,14.0288012]
[1730087293328,19.7294012,175.42,175.36,14.0288012]
[1730087294997,14.0288012,175.4,175.35,14.0288012]
[1730087295307,14.0288012,175.42,175.36,38.0566652]
[1730087295699,36.3154012,175.43,175.37,14.0288012]
[1730087295892,14.0288012,175.44,175.38,14.0288012]
[1730087296814,14.0288012,175.45,175.39,14.0288012]
[1730087297022,36.7390012,175.47,175.41,14.0288012]
[1730087297192,25.9824012,175.47,175.42,14.0288012]
[1730087298002,11.9536,175.47,175.42,14.0288012]
[1730087298605,14.0288012,175.46,175.41,14.0288012]
[1730087298816,14.0288012,175.45,175.39,14.0288012]
[1730087299021,14.0288012,175.45,175.34,15.1564]
[1730087299022,14.0288012,175.4,175.34,15.1564]
[1730087299224,14.0288012,175.42,175.36,14.0288012]
[1730087299403,14.0288012,175.38,175.3,5.87657966]
[1730087299717,14.0288012,175.39,175.33,14.0288012]
[1730087300025,14.0288012,175.4,175.34,14.0288012]
[1730087300202,15.7532,175.43,175.33,14.0288012]
[1730087300203,19.7303012,175.39,175.33,14.0288012]
[1730087301803,14.0288012,175.37,175.32,14.0288012]
[1730087302121,14.0288012,175.37,175.31,14.6254373]
[1730087303211,14.0288012,175.36,175.31,14.6254373]
[1730087303598,14.0288012,175.36,175.31,0.5966361]
[1730087303795,5.7019,175.38,175.31,0.5966361]
[1730087303796,14.0288012,175.35,175.31,0.5966361]
[1730087304018,14.0288012,175.33,175.31,0.5966361]
[1730087304220,14.0288012,175.34,175.31,0.5966361]
[1730087304412,14.0288012,175.36,175.31,14.6254373]
[1730087304811,19.7314012,175.36,175.31,14.6254373]
[1730087305808,19.7314012,175.36,175.31,20.3295373]
[1730087306021,19.7307012,175.38,175.33,14.0288012]
[1730087306331,5.7019,175.38,175.33,14.0288012]
[1730087306532,30.6084012,175.35,175.31,0.5966361]
[1730087306701,14.0288012,175.34,175.31,0.5966361]
[1730087307629,14.0288012,175.33,175.31,0.5966361]
[1730087308125,14.0288012,175.32,175.31,0.5966361]
[1730087309315,20.2506012,175.32,175.31,0.5966361]
[1730087310024,25.9544012,175.32,175.31,0.5966361]
[1730087311710,6.2218,175.32,175.31,0.5966361]
[1730087311911,16.5796,175.35,175.31,0.5966361]
[1730087311912,30.6084012,175.35,175.31,0.5966361]
[1730087312315,14.0288012,175.36,175.31,6.3007361]
[1730087312513,14.0288012,175.35,175.31,6.3007361]
[1730087314209,14.0288012,175.32,175.31,0.5966361]
[1730087315218,14.0288012,175.35,175.31,0.5966361]
[1730087315538,5.7032,175.34,175.31,0.5966361]
[1730087316822,14.0288012,175.35,175.31,0.5966361]
[1730087316823,19.7316012,175.35,175.31,0.5966361]
[1730087317217,14.0288012,175.34,175.31,0.5966361]
[1730087317635,14.0288012,175.33,175.31,0.5966361]
[1730087318546,14.0288012,175.32,175.31,0.5966361]
[1730087318921,19.7324012,175.33,175.31,0.5966361]
[1730087320826,14.0288012,175.32,175.31,0.5966361]
[1730087321044,44.5933024,175.32,175.31,0.5966361]
[1730087321215,44.6933024,175.32,175.31,0.5966361]
[1730087321415,30.6645012,175.32,175.31,0.5966361]
[1730087321617,30.5645012,175.32,175.31,0.5966361]
[1730087322718,36.2683012,175.32,175.31,0.5966361]
[1730087325331,50.5480824,175.32,175.31,0.5966361]
[1730087325731,36.5192812,175.32,175.31,0.5966361]
[1730087326146,36.6192812,175.32,175.31,0.5966361]
[1730087326350,36.5192812,175.32,175.31,0.5966361]
[1730087326533,36.6192812,175.32,175.31,0.5966361]
[1730087326737,50.5480824,175.32,175.31,0.5966361]
[1730087326936,74.5249664,175.32,175.31,0.5966361]
[1730087327235,81.1200664,175.32,175.31,0.5966361]
[1730087328449,43.1143812,175.32,175.31,0.5966361]